bitfinex-derivatives/quotes_SOLF0:USTF0_20241127
["timestamp","ask_amount","ask_price","bid_price","bid_amount"]
[1732717636080,2.1075,237.19,237.11,2.57732703]
[1732717636581,2.1075,237.19,237.1,6.97982703]
[1732717636981,12.33963908,237.16,237.07,2.57732703]
[1732717637177,10.23193908,237.16,237.08,2.57732703]
[1732717637377,10.23193908,237.16,237.07,2.57732703]
[1732717637577,10.23193908,237.16,237.09,2.1083]
[1732717637775,10.23193908,237.16,237.07,2.57732703]
[1732717637981,2.14790829,237.18,237.07,2.57732703]
[1732717638186,10.23193908,237.19,237.11,2.1081]
[1732717638785,4.20637107,237.18,237.11,2.1081]
[1732717638981,4.20637107,237.18,237.07,2.57732703]
[1732717638982,2.09877107,237.18,237.07,2.57732703]
[1732717639185,2.09877107,237.18,237.06,4.67622703]
[1732717639578,12.33933908,237.19,237.06,4.67622703]
[1732717639784,2.1074,237.19,237.08,10.23193908]
[1732717640782,2.1071,237.23,237.11,10.23193908]
[1732717640980,2.1031,237.26,237.14,10.23193908]
[1732717641186,2.1031,237.26,237.14,12.61193908]
[1732717641387,4.21,237.26,237.14,12.61193908]
[1732717641689,2.1031,237.26,237.14,12.61193908]
[1732717642190,2.1069,237.25,237.18,2.1074]
[1732717643085,2.38,237.28,237.14,12.61193908]
[1732717643284,12.31434628,237.3,237.15,4.3078]
[1732717643486,14.69434628,237.3,237.15,4.3078]
[1732717643789,2.1067,237.27,237.15,4.3078]
[1732717644085,14.69434628,237.3,237.15,6.5194]
[1732717644392,14.69434628,237.3,237.21,2.1072]
[1732717644792,2.1067,237.27,237.2,2.1073]
[1732717644981,10.23193908,237.21,237.09,2.38]
[1732717646187,2.1074,237.2,237.14,2.1079]
[1732717646390,12.61193908,237.24,237.14,2.1079]
[1732717646693,4.487,237.24,237.15,2.1077]
[1732717646992,12.61193908,237.24,237.12,10.23193908]
[1732717648081,2.1072,237.22,237.15,2.1077]
[1732717649989,2.1072,237.22,237.09,12.61193908]
[1732717650387,6.55315934,237.21,237.14,6.55315934]
[1732717650696,6.55315934,237.21,237.16,2.1077]
[1732717652993,6.55315934,237.21,237.15,2.1078]
[1732717653190,6.55315934,237.21,237.14,6.55315934]
[1732717654497,4.4871,237.24,237.16,6.55315934]
[1732717654692,6.55315934,237.23,237.16,6.55315934]
[1732717654899,6.55315934,237.23,237.17,2.1075]
[1732717655098,6.55315934,237.21,237.17,2.1075]
[1732717655301,6.55315934,237.21,237.15,6.55315934]
[1732717655793,6.55315934,237.21,237.14,6.55315934]
[1732717655994,2.1071,237.23,237.14,6.55315934]
[1732717656298,6.55315934,237.2,237.14,6.55315934]
[1732717657094,2.1067,237.25,237.18,6.55315934]
[1732717657294,6.55315934,237.27,237.2,6.55315934]
[1732717657600,6.55315934,237.28,237.23,2.1068]
[1732717657891,6.55315934,237.28,237.2,6.55315934]
[1732717658292,6.55315934,237.28,237.22,6.55315934]
[1732717658492,6.55315934,237.3,237.22,6.55315934]
[1732717658895,6.55315934,237.24,237.16,6.2766]
[1732717659097,6.55315934,237.24,237.18,6.55315934]
[1732717659398,6.55315934,237.28,237.2,6.55315934]
[1732717659597,6.55315934,237.28,237.21,2.107]
[1732717659989,6.55315934,237.28,237.22,2.107]
[1732717660193,6.55315934,237.28,237.2,6.55315934]
[1732717660387,6.55315934,237.26,237.2,6.55315934]
[1732717660596,6.55315934,237.26,237.2,2.1071]
[1732717661591,6.55315934,237.26,237.21,2.107]
[1732717661999,8.65955934,237.28,237.21,2.107]
[1732717663099,2.06248479,237.33,237.24,6.55315934]
[1732717663305,6.55315934,237.34,237.26,6.55315934]
[1732717663707,6.55315934,237.34,237.28,2.1064]
[1732717664095,6.55315934,237.34,237.26,6.55315934]
[1732717664296,6.55315934,237.34,237.29,2.1063]
[1732717664496,6.55315934,237.34,237.26,6.55315934]
[1732717664904,6.55315934,237.34,237.28,2.1064]
[1732717665602,6.55315934,237.36,237.3,2.1062]
[1732717666002,2.1057,237.37,237.3,2.1062]
[1732717666199,4.5523,237.4,237.33,2.106]
[1732717666399,6.55315934,237.4,237.32,6.55315934]
[1732717666815,6.55315934,237.4,237.34,2.1058]
[1732717667102,6.55315934,237.4,237.32,6.55315934]
[1732717667308,6.55315934,237.4,237.33,2.1059]
[1732717667610,6.55315934,237.4,237.32,6.55315934]
[1732717667805,6.55315934,237.38,237.3,6.55315934]
[1732717668399,6.55315934,237.35,237.29,6.3851]
[1732717669005,6.55315934,237.35,237.34,2.1059]
[1732717669705,6.55315934,237.37,237.34,2.1059]
[1732717669907,2.1052,237.43,237.31,6.55315934]
[1732717670106,6.55315934,237.4,237.31,6.55315934]
[1732717671107,6.55315934,237.4,237.33,6.55315934]
[1732717671310,6.55315934,237.4,237.34,2.38]
[1732717672111,6.55315934,237.4,237.37,2.1056]
[1732717673313,6.55315934,237.38,237.34,2.38]
[1732717673916,6.55315934,237.4,237.34,2.38]
[1732717674411,6.55315934,237.38,237.34,2.38]
[1732717675111,6.55315934,237.36,237.31,2.38]
[1732717675414,6.55315934,237.33,237.31,2.38]
[1732717675615,6.55315934,237.33,237.32,2.1061]
[1732717675814,6.55315934,237.35,237.31,2.38]
[1732717677007,2.1001,237.44,237.31,2.38]
[1732717677205,6.55315934,237.39,237.31,2.38]
[1732717677616,6.55315934,237.39,237.37,2.1055]
[1732717678318,10.22308244,237.42,237.37,2.1055]
[1732717678614,10.22308244,237.42,237.36,2.1057]
[1732717680319,10.22308244,237.42,237.37,2.1055]
[1732717680614,10.22308244,237.42,237.31,2.38]
[1732717681021,10.22308244,237.42,237.38,2.1055]
[1732717681422,10.22308244,237.42,237.31,2.38]
[1732717681613,10.22308244,237.45,237.4,2.1053]
[1732717683920,10.22308244,237.5,237.37,2.38]
[1732717684113,10.22308244,237.5,237.38,2.1687]
[1732717684315,10.22308244,237.5,237.38,4.2684]
[1732717685424,10.22308244,237.5,237.43,2.1053]
[1732717685624,10.22308244,237.5,237.38,4.2684]
[1732717685923,10.22308244,237.5,237.44,2.1051]
[1732717686521,10.22308244,237.5,237.38,4.2684]
[1732717686522,10.22308244,237.5,237.45,2.1051]
[1732717686717,10.22308244,237.5,237.38,4.2684]
[1732717686919,10.22308244,237.53,237.39,14.88358244]
[1732717687121,10.22308244,237.5,237.39,4.6605]
[1732717688122,10.22308244,237.5,237.47,2.1049]
[1732717689430,10.22308244,237.5,237.39,4.6605]
[1732717689922,10.22308244,237.5,237.47,2.1049]
[1732717690124,10.22308244,237.5,237.39,2.2805]
[1732717690323,10.22308244,237.44,237.38,6.6484]
[1732717690522,10.22308244,237.44,237.38,2.38]
[1732717690724,10.22308244,237.41,237.38,2.38]
[1732717690920,10.22308244,237.41,237.36,2.1059]
[1732717691324,10.22308244,237.41,237.34,2.38]
[1732717691624,10.22308244,237.38,237.34,2.38]
[1732717693029,10.22308244,237.38,237.3,2.38]
[1732717693826,10.22308244,237.38,237.33,2.1061]
[1732717694027,10.22308244,237.38,237.3,2.38]
[1732717694929,10.22308244,237.38,237.35,2.1059]
[1732717695129,10.22308244,237.41,237.3,2.38]
[1732717695530,10.22308244,237.41,237.38,2.1057]
[1732717695531,9.23124403,237.4,237.38,2.1057]
[1732717695730,9.23124403,237.39,237.3,0.03890097]
[1732717695935,17.68069222,237.38,237.31,2.38]
[1732717696128,17.68069222,237.37,237.31,2.38]
[1732717696329,17.68069222,237.36,237.35,2.106]
[1732717696530,17.68069222,237.36,237.31,2.38]
[1732717696832,17.68069222,237.35,237.31,2.38]
[1732717697029,17.68069222,237.34,237.31,2.38]
[1732717697225,17.42278791,237.33,237.29,2.13278831]
[1732717697428,17.42278791,237.32,237.23,2.38]
[1732717697733,17.42278791,237.31,237.3,2.1065]
[1732717698334,10.13241791,237.31,237.3,6.581]
[1732717698536,6.71021791,237.31,237.3,6.581]
[1732717698731,2.1934,237.5,237.3,14.69758244]
[1732717698934,2.0788,237.52,237.39,10.22308244]
[1732717699146,2.0788,237.52,237.4,2.38]
[1732717699439,12.60308244,237.57,237.49,2.1048]
[1732717699630,12.60308244,237.57,237.42,10.22308244]
[1732717699832,10.22308244,237.57,237.42,10.22308244]
[1732717700133,2.2413,237.58,237.51,2.1046]
[1732717700328,2.2413,237.58,237.47,2.38]
[1732717700534,10.22308244,237.72,237.47,2.38]
[1732717700728,10.22308244,237.61,237.54,2.1043]
[1732717700934,10.22308244,237.61,237.47,2.38]
[1732717701735,10.22308244,237.61,237.55,2.1042]
[1732717702734,10.22308244,237.61,237.54,2.1043]
[1732717702933,10.22308244,237.61,237.53,2.38]
[1732717703341,10.22308244,237.64,237.53,2.38]
[1732717703542,10.22308244,237.64,237.56,2.1041]
[1732717704234,12.32648244,237.64,237.56,2.1041]
[1732717704428,6.38429534,237.65,237.53,2.38]
[1732717704429,10.22308244,237.61,237.53,2.38]
[1732717705237,10.22308244,237.61,237.53,4.4844]
[1732717705437,10.22308244,237.61,237.53,2.38]
[1732717706448,10.22308244,237.61,237.54,2.1043]
[1732717706743,10.22308244,237.61,237.53,2.38]
[1732717707237,10.22308244,237.58,237.49,2.38]
[1732717708143,12.32708244,237.58,237.5,2.1047]
[1732717708443,10.22308244,237.58,237.49,2.38]
[1732717708740,10.22308244,237.55,237.49,2.1048]
[1732717708942,10.22308244,237.55,237.44,2.38]
[1732717709242,2.1147,237.6,237.44,2.38]
[1732717709243,10.22308244,237.58,237.44,2.38]
[1732717709436,2.1147,237.6,237.45,10.22308244]
[1732717710144,10.22308244,237.58,237.45,10.22308244]
[1732717710344,10.22308244,237.58,237.44,2.38]
[1732717710545,12.32708244,237.58,237.5,2.1046]
[1732717710741,10.22308244,237.58,237.45,10.22308244]
[1732717711141,10.22308244,237.58,237.5,2.1046]
[1732717711646,12.32708244,237.58,237.5,2.1046]
[1732717711841,12.32708244,237.58,237.45,10.22308244]
[1732717712052,12.32708244,237.58,237.49,2.1048]
[1732717712241,10.22308244,237.58,237.44,2.38]
[1732717712440,10.22308244,237.58,237.47,2.1049]
[1732717713144,2.1042,237.55,237.48,2.1049]
[1732717713344,12.32728244,237.55,237.48,2.1049]
[1732717713541,2.1041,237.57,237.49,2.1047]
[1732717714846,10.22308244,237.55,237.44,2.38]
[1732717715036,10.22308244,237.55,237.48,2.1049]
[1732717716042,10.22308244,237.55,237.42,2.1502]
[1732717716344,10.22308244,237.55,237.44,2.38]
[1732717716744,10.22308244,237.52,237.39,2.2114]
[1732717716948,10.22308244,237.52,237.4,2.38]
[1732717717749,10.22308244,237.49,237.38,2.38]
[1732717717952,10.22308244,237.46,237.4,2.1055]
[1732717718148,10.22308244,237.49,237.38,2.38]
[1732717718542,12.32798244,237.49,237.41,2.1055]
[1732717718750,10.22308244,237.49,237.41,2.1055]
[1732717719042,10.22308244,237.49,237.38,2.38]
[1732717719655,12.32788244,237.49,237.38,2.38]
[1732717719954,10.22308244,237.49,237.38,2.38]
[1732717720346,10.22308244,237.52,237.38,2.38]
[1732717721655,2.1048,237.5,237.38,2.38]
[1732717722154,2.1048,237.5,237.42,2.1053]
[1732717722354,2.1048,237.5,237.38,2.38]
[1732717722555,12.32758244,237.52,237.38,2.38]
[1732717722955,10.22308244,237.52,237.39,10.22308244]
[1732717723557,10.22308244,237.52,237.38,2.38]
[1732717723953,10.22308244,237.52,237.45,2.1051]
[1732717724356,10.22308244,237.49,237.38,2.38]
[1732717727056,10.22308244,237.49,237.42,2.1054]
[1732717727057,12.32788244,237.49,237.42,2.1054]
[1732717727660,2.1047,237.5,237.42,2.1054]
[1732717727861,2.1047,237.5,237.38,2.38]
[1732717728651,2.1047,237.5,237.43,2.1053]
[1732717729254,10.22308244,237.52,237.38,12.60308244]
[1732717729459,2.1046,237.51,237.44,2.1051]
[1732717729755,14.60798244,237.55,237.44,2.38]
[1732717730264,2.1045,237.53,237.47,2.1049]
[1732717730457,2.1045,237.53,237.44,2.38]
[1732717732063,2.1045,237.53,237.46,2.105]
[1732717733455,14.60798244,237.55,237.44,2.38]
[1732717733661,2.1678,237.55,237.44,2.38]
[1732717734266,4.2721,237.55,237.44,2.38]
[1732717735865,2.1047,237.5,237.43,2.1053]
[1732717736159,12.35690724,237.51,237.43,2.1053]
[1732717736359,12.35690724,237.51,237.4,2.38]
[1732717736562,2.1049,237.48,237.4,2.38]
[1732717736764,12.32798244,237.48,237.4,2.38]
[1732717736966,10.22308244,237.48,237.4,2.38]
[1732717737966,12.32798244,237.48,237.41,2.1054]
[1732717738364,12.32798244,237.48,237.4,2.38]
[1732717738565,12.32798244,237.48,237.41,2.1054]
[1732717738766,10.22308244,237.48,237.4,2.38]
[1732717739173,10.22308244,237.48,237.4,4.4855]
[1732717739372,2.105,237.47,237.4,2.38]
[1732717739781,10.22308244,237.48,237.4,2.38]
[1732717740274,10.22308244,237.48,237.41,2.1054]
[1732717740482,10.22308244,237.48,237.4,2.38]
[1732717741076,12.32798244,237.48,237.4,2.38]
[1732717741971,12.32798244,237.48,237.42,2.1054]
[1732717742571,10.22308244,237.48,237.43,2.1052]
[1732717743373,10.22308244,237.48,237.4,2.38]
[1732717743374,2.1051,237.46,237.4,4.4855]
[1732717743782,2.1051,237.46,237.4,2.38]
[1732717744077,2.105,237.47,237.42,2.1054]
[1732717744280,2.105,237.47,237.4,2.38]
[1732717744481,10.22308244,237.48,237.4,2.38]
[1732717745386,2.105,237.47,237.41,2.1055]
[1732717745772,14.46160724,237.51,237.43,2.1053]
[1732717745977,10.22308244,237.51,237.4,2.38]
[1732717746376,6.53920374,237.47,237.4,2.38]
[1732717746979,6.53920374,237.49,237.41,6.53920374]
[1732717747375,6.53920374,237.47,237.42,2.1053]
[1732717747577,6.53920374,237.47,237.4,2.38]
[1732717748481,2.1045,237.53,237.46,2.105]
[1732717748684,6.53920374,237.49,237.41,6.53920374]
[1732717749080,6.53920374,237.51,237.47,2.1049]
[1732717749386,6.53920374,237.51,237.43,6.53920374]
[1732717749587,2.2639,237.54,237.45,6.53920374]
[1732717749785,6.53920374,237.53,237.46,2.38]
[1732717750475,6.53920374,237.53,237.49,2.1048]
[1732717753090,6.53920374,237.53,237.5,2.1047]
[1732717753292,6.53920374,237.53,237.46,2.38]
[1732717754084,6.53920374,237.53,237.51,2.1046]
[1732717754284,2.38,237.62,237.47,6.53920374]
[1732717754487,6.53920374,237.56,237.47,6.53920374]
[1732717754682,6.53920374,237.52,237.4,12.66]
[1732717754887,6.53920374,237.52,237.43,6.53920374]
[1732717755288,6.53920374,237.52,237.45,6.53920374]
[1732717755784,6.53920374,237.52,237.5,2.1047]
[1732717755985,6.53920374,237.52,237.41,11.08120374]
[1732717756190,6.53920374,237.5,237.41,11.08120374]
[1732717756381,6.53920374,237.5,237.48,2.1049]
[1732717756586,6.53920374,237.5,237.41,11.08120374]
[1732717757381,6.53920374,237.5,237.45,2.1051]
[1732717757689,6.53920374,237.46,237.39,2.38]
[1732717757894,6.53920374,237.46,237.41,2.1055]
[1732717758092,6.53920374,237.44,237.39,2.38]
[1732717758387,6.53920374,237.46,237.43,2.1053]
[1732717758790,4.2131,237.54,237.41,6.53920374]
[1732717758983,4.2131,237.54,237.46,2.105]
[1732717758984,6.53920374,237.5,237.46,2.105]
[1732717759186,6.53920374,237.48,237.46,2.105]
[1732717760192,6.53920374,237.5,237.43,2.1052]
[1732717760394,6.53920374,237.5,237.41,6.53920374]
[1732717760793,4.2131,237.54,237.46,2.105]
[1732717760990,6.53920374,237.52,237.43,6.53920374]
[1732717761192,6.53920374,237.52,237.39,2.38]
[1732717761193,6.53920374,237.54,237.49,2.1048]
[1732717761492,6.53920374,237.56,237.49,6.53920374]
[1732717761791,6.53920374,237.58,237.54,2.1043]
[1732717762188,6.53920374,237.58,237.49,6.53920374]
[1732717762189,6.53920374,237.58,237.51,2.38]
[1732717762383,16.45183267,237.62,237.55,2.1042]
[1732717762793,16.45183267,237.62,237.51,2.38]
[1732717763087,12.29243267,237.62,237.56,2.1041]
[1732717765096,10.20753267,237.59,237.54,2.1043]
[1732717765294,10.20753267,237.59,237.51,2.38]
[1732717766194,10.20753267,237.59,237.54,2.1043]
[1732717767396,10.20753267,237.59,237.51,2.38]
[1732717767990,6.6679,237.71,237.55,10.20753267]
[1732717768195,8.0002814,237.7,237.55,10.20753267]
[1732717768397,16.55596219,237.71,237.55,10.20753267]
[1732717768595,10.20753267,237.68,237.53,2.1015]
[1732717768793,2.1032,237.67,237.53,2.1015]
[1732717768993,10.20753267,237.68,237.53,2.1015]
[1732717769195,10.20753267,237.65,237.59,2.1038]
[1732717769499,10.20753267,237.68,237.53,2.1015]
[1732717769700,10.20753267,237.68,237.54,2.38]
[1732717769897,2.1032,237.67,237.54,2.38]
[1732717770199,10.20753267,237.68,237.54,2.38]
[1732717771201,2.1032,237.67,237.54,2.38]
[1732717771399,2.1032,237.67,237.55,2.1464]
[1732717772000,2.1032,237.67,237.59,2.1038]
[1732717772502,2.1033,237.66,237.59,2.1038]
[1732717774100,10.20753267,237.68,237.55,2.1464]
[1732717774304,12.58753267,237.71,237.55,12.35393267]
[1732717774898,2.1031,237.69,237.62,2.1036]
[1732717775100,10.20753267,237.71,237.6,2.38]
[1732717775500,2.103,237.7,237.63,2.1035]
[1732717776402,10.20753267,237.71,237.63,2.1035]
[1732717776697,2.103,237.69,237.63,2.1035]
[1732717776903,10.20753267,237.71,237.6,2.38]
[1732717777094,4.33,237.73,237.6,2.38]
[1732717777298,2.2273,237.73,237.63,2.1035]
[1732717777598,2.2273,237.73,237.6,2.38]
[1732717778696,2.1027,237.73,237.66,2.1033]
[1732717779807,2.1027,237.73,237.6,2.38]
[1732717780107,12.31013267,237.74,237.6,2.38]
[1732717780601,12.31013267,237.74,237.67,2.1032]
[1732717781203,10.20753267,237.74,237.67,2.1032]
[1732717781403,10.20753267,237.74,237.6,2.38]
[1732717781603,10.20753267,237.74,237.66,2.1033]
[1732717781905,10.20753267,237.74,237.6,2.38]
[1732717782508,12.31013267,237.74,237.67,2.1032]
[1732717782902,10.20753267,237.74,237.67,2.1032]
[1732717784003,10.20753267,237.74,237.6,2.38]
[1732717784406,6.52637423,237.71,237.62,6.52637423]
[1732717785200,6.52637423,237.71,237.64,2.1034]
[1732717785410,6.52637423,237.71,237.62,6.52637423]
[1732717785604,6.52637423,237.65,237.62,2.38]
[1732717785911,6.52637423,237.63,237.62,2.38]
[1732717786305,6.52637423,237.63,237.6,2.1038]
[1732717786507,6.52637423,237.63,237.57,2.38]
[1732717786909,6.52637423,237.63,237.59,2.1038]
[1732717787615,6.52637423,237.63,237.52,2.102]
[1732717787616,6.52637423,237.61,237.49,5.81665535]
[1732717787806,4.4785,237.71,237.53,6.52637423]
[1732717788008,6.52637423,237.62,237.53,6.52637423]
[1732717788312,12.30888486,237.65,237.53,2.38]
[1732717788508,10.20548486,237.65,237.53,2.38]
[1732717789314,10.20548486,237.65,237.57,2.104]
[1732717789513,10.20548486,237.65,237.53,2.38]
[1732717790809,10.20548486,237.62,237.53,2.38]
[1732717791010,10.20548486,237.62,237.49,10.20548486]
[1732717791206,2.38,237.64,237.5,2.38]
[1732717791608,2.38,237.64,237.58,2.1039]
[1732717791814,10.20548486,237.67,237.52,10.20548486]
[1732717792214,10.20548486,237.67,237.6,2.1037]
[1732717792517,10.20548486,237.67,237.52,10.20548486]
[1732717792915,12.30868486,237.67,237.58,2.1039]
[1732717793117,12.30868486,237.67,237.52,10.20548486]
[1732717793915,2.1035,237.63,237.5,2.38]
[1732717794417,2.1035,237.63,237.56,2.1041]
[1732717794621,12.30898486,237.64,237.5,2.38]
[1732717794811,10.20548486,237.64,237.5,2.38]
[1732717795011,10.20548486,237.64,237.55,2.1042]
[1732717795610,2.1038,237.6,237.53,2.1044]
[1732717796019,10.20548486,237.64,237.5,2.38]
[1732717796220,2.38,237.63,237.5,2.38]
[1732717796415,2.1037,237.61,237.54,2.1043]
[1732717797618,2.38,237.63,237.5,2.38]
[1732717797818,2.1037,237.61,237.5,2.38]
[1732717798018,2.38,237.63,237.5,2.38]
[1732717798417,2.38,237.63,237.55,2.1042]
[1732717800221,2.38,237.63,237.5,2.38]
[1732717801019,10.20548486,237.61,237.5,2.38]
[1732717801221,10.20548486,237.58,237.46,6.9108]
[1732717801412,10.20548486,237.58,237.49,2.1047]
[1732717801613,12.2904387,237.58,237.46,2.2669]
[1732717801818,2.1044,237.54,237.46,2.2669]
[1732717802124,2.38,237.57,237.5,2.1047]
[1732717802420,2.38,237.57,237.46,2.2669]
[1732717802618,2.38,237.57,237.5,2.1047]
[1732717802820,2.38,237.57,237.43,12.58548486]
[1732717803024,2.1042,237.56,237.43,12.58548486]
[1732717803525,2.1042,237.56,237.5,2.1046]
[1732717803721,2.38,237.57,237.43,12.58548486]
[1732717803921,2.1041,237.58,237.43,12.58548486]
[1732717803922,2.1041,237.58,237.43,13.63812698]
[1732717804218,2.1041,237.58,237.43,12.58548486]
[1732717804626,2.1039,237.59,237.52,2.1044]
[1732717805315,2.1039,237.59,237.53,2.1044]
[1732717805519,10.20548486,237.64,237.5,2.38]
[1732717805724,10.20548486,237.64,237.51,2.38]
[1732717805922,10.20548486,237.64,237.56,2.1041]
[1732717806320,10.20548486,237.64,237.51,2.38]
[1732717806627,10.20548486,237.64,237.5,4.4131]
[1732717806628,10.20548486,237.61,237.46,2.38]
[1732717806830,2.104,237.58,237.46,2.38]
[1732717807021,2.104,237.58,237.51,2.1045]
[1732717808227,10.20548486,237.64,237.49,10.20548486]
[1732717808420,6.53211329,237.61,237.55,2.1042]
[1732717808725,6.53211329,237.61,237.53,6.53211329]
[1732717809322,2.38,237.65,237.52,2.38]
[1732717809323,6.53211329,237.59,237.52,2.38]
[1732717809528,6.53211329,237.55,237.52,2.38]
[1732717809730,6.53211329,237.55,237.48,2.38]
[1732717809927,2.38,237.65,237.48,2.38]
[1732717809928,2.104,237.59,237.49,6.53211329]
[1732717810223,2.38,237.65,237.53,6.53211329]
[1732717810435,4.2825,237.7,237.57,6.53211329]
[1732717810624,6.53211329,237.63,237.56,2.38]
[1732717810822,6.53211329,237.61,237.55,4.4842]
[1732717811020,6.53211329,237.59,237.51,8.91211329]
[1732717811221,2.38,237.65,237.51,2.38]
[1732717811222,6.53211329,237.57,237.51,2.38]
[1732717811929,6.53211329,237.57,237.49,6.53211329]
[1732717812227,2.38,237.65,237.53,6.53211329]
[1732717812428,6.53211329,237.62,237.54,2.38]
[1732717812629,6.53211329,237.62,237.55,2.1042]
[1732717812937,6.53211329,237.6,237.54,2.38]
[1732717813332,6.53211329,237.6,237.54,4.4843]
[1732717813530,2.38,237.65,237.54,2.38]
[1732717813531,6.53211329,237.58,237.54,2.38]
[1732717813730,6.53211329,237.58,237.53,2.1043]
[1732717813930,6.53211329,237.58,237.5,2.38]
[1732717814530,6.53211329,237.6,237.51,6.53211329]
[1732717814934,6.53211329,237.6,237.54,2.1043]
[1732717815939,2.38,237.65,237.52,2.1045]
[1732717815940,8.63611329,237.58,237.52,2.1045]
[1732717816132,6.53211329,237.56,237.52,2.1045]
[1732717817442,6.53211329,237.56,237.5,2.38]
[1732717817443,6.53211329,237.58,237.5,2.38]
[1732717817638,6.53211329,237.58,237.53,2.1044]
[1732717817947,6.53211329,237.62,237.53,6.53211329]
[1732717818241,4.2825,237.7,237.55,6.53211329]
[1732717818543,8.63561329,237.63,237.58,2.104]
[1732717818940,6.53211329,237.63,237.58,2.104]
[1732717820438,2.38,237.69,237.51,4.2738]
[1732717820439,6.53211329,237.59,237.51,4.2738]
[1732717820638,6.53211329,237.57,237.5,2.38]
[1732717821042,6.53211329,237.57,237.53,2.1044]
[1732717821341,6.53211329,237.59,237.51,6.53211329]
[1732717821538,2.1039,237.6,237.54,2.1042]
[1732717821740,6.53211329,237.61,237.53,6.53211329]
[1732717822138,2.1039,237.59,237.54,2.1043]
[1732717822538,6.53211329,237.61,237.52,6.53211329]
[1732717822945,2.1039,237.6,237.54,2.1043]
[1732717823241,6.53211329,237.59,237.52,6.53211329]
[1732717824641,6.53211329,237.59,237.54,2.1043]
[1732717824845,8.63601329,237.59,237.54,2.1043]
[1732717827243,6.53211329,237.59,237.54,2.1043]
[1732717828355,8.63611329,237.59,237.54,2.1043]
[1732717828550,6.53211329,237.59,237.52,2.1044]
[1732717828746,6.53211329,237.57,237.5,2.38]
[1732717829046,6.53211329,237.55,237.47,2.198]
[1732717829250,6.53211329,237.55,237.49,2.1047]
[1732717829553,6.53211329,237.55,237.46,8.91211329]
[1732717829745,6.53211329,237.55,237.49,2.1047]
[1732717830055,8.63641329,237.55,237.46,8.91211329]
[1732717830349,2.104,237.58,237.5,6.53211329]
[1732717830549,6.53211329,237.6,237.52,6.53211329]
[1732717830949,8.63601329,237.6,237.52,6.53211329]
[1732717831349,6.53211329,237.6,237.52,6.53211329]
[1732717831549,2.2104,237.62,237.5,6.53211329]
[1732717831550,6.53211329,237.58,237.5,6.53211329]
[1732717831854,6.53211329,237.58,237.53,2.1043]
[1732717832257,8.63621329,237.58,237.46,2.38]
[1732717832455,8.63621329,237.58,237.52,2.1045]
[1732717832655,6.53211329,237.58,237.49,6.53211329]
[1732717832854,2.2042,237.69,237.52,6.53211329]
[1732717833053,6.53211329,237.62,237.55,2.1042]
[1732717833356,6.53211329,237.62,237.52,6.53211329]
[1732717833952,2.1038,237.6,237.54,2.1043]
[1732717834151,8.63591329,237.6,237.54,2.1043]
[1732717834358,6.53211329,237.6,237.52,6.53211329]
[1732717834550,2.1039,237.59,237.52,8.63651329]
[1732717834749,6.53211329,237.6,237.52,6.53211329]
[1732717834952,2.1043,237.55,237.48,8.91211329]
[1732717835153,6.53211329,237.56,237.48,2.38]
[1732717835755,8.63631329,237.56,237.5,2.1047]
[1732717835957,6.53211329,237.58,237.5,6.53211329]
[1732717836257,2.38,237.62,237.48,2.38]
[1732717836954,2.104,237.58,237.52,2.1044]
[1732717837554,2.1042,237.56,237.51,2.1045]
[1732717837754,2.38,237.62,237.51,2.1045]
[1732717838159,2.1041,237.58,237.52,2.1045]
[1732717838558,2.1037,237.62,237.5,10.2083583]
[1732717838757,2.38,237.64,237.5,10.2083583]
[1732717839157,9.08417729,237.63,237.5,10.2083583]
[1732717839358,12.5883583,237.66,237.5,10.2083583]
[1732717839552,17.10723737,237.65,237.5,10.2083583]
[1732717839756,9.08527831,237.64,237.5,10.2083583]
[1732717839957,17.10723737,237.64,237.5,10.2083583]
[1732717840158,9.08527831,237.63,237.5,10.2083583]
[1732717840353,10.2083583,237.65,237.49,2.2213]
[1732717840663,10.2083583,237.62,237.5,2.38]